fUSD/lending_fUSD_20240329
["ID","MTS","AMOUNT","RATE_DAILY","PERIOD"]
[320977198,1711726279054,-1752.94,0.0005178,120]
[320977199,1711726279065,-506.23,0.0005178,120]
[320977200,1711726279075,-1482.27,0.0005178,120]
[320977201,1711726279084,-315.86535687,0.0005178,120]
[320977202,1711726279094,-1080.07,0.0005178,120]
[320977203,1711726279103,-500.0,0.0005178,120]
[320977204,1711726279113,-500.0,0.0005178,120]
[320977205,1711726279123,-917.61,0.0005178,120]
[320977206,1711726279135,-824.53,0.0005178,120]
[320977207,1711726279144,-641.26,0.0005178,120]
[320977208,1711726279154,-579.18,0.0005178,120]
[320977209,1711726279166,-572.87,0.0005178,120]
[320977210,1711726279177,-1389.6,0.0005178,120]
[320977211,1711726279187,-975.56,0.0005178,120]
[320977212,1711726279197,-500.0,0.0005178,120]
[320977213,1711726279207,-378.09790242,0.0005178,120]
[320977214,1711726279217,-157.73076923,0.00051833,60]
[320977215,1711726279227,-317.32074506,0.00051886,49]
[320977216,1711726279238,-2600.0,0.000519,18]
[320977217,1711726279247,-17598.0,0.000519,120]
[320977218,1711726279257,-158.62188234,0.0005193,10]
[320977219,1711726279267,-150.0,0.0005198,10]
[320977220,1711726279277,-165.51225205,0.00051987,10]
[320977221,1711726279286,-250.46578713,0.00051996,10]
[320977222,1711726279295,-1408.51871603,0.00051998,10]
[320977223,1711726279305,-1000.0,0.00052,120]
[320977224,1711726279315,-1200.0,0.00052,53]
[320977225,1711726279324,-504.77552747,0.00052,60]
[320977226,1711726279333,-5000.0,0.00052,14]
[320977227,1711726279343,-379.32515966,0.00052,120]
[320977228,1711726279353,-2437.42170417,0.00052,4]
[320977229,1711726279362,-150.0,0.00052,2]
[320977230,1711726279372,-150.0,0.00052,2]
[320977231,1711726279381,-650.0,0.00052,120]
[320977232,1711726279391,-150.0,0.00052,2]
[320977233,1711726279401,-166.33000666,0.00052003,60]
[320977234,1711726279412,-651.09584144,0.00052051,2]
[320977235,1711726279421,-500.0,0.00052054,120]
[320977236,1711726279431,-277.42,0.00052054,120]
[320977237,1711726279441,-500.0,0.00052054,120]
[320977238,1711726279450,-500.0,0.00052054,30]
[320977239,1711726279460,-235.92,0.00052054,120]
[320977240,1711726279470,-500.0,0.00052054,120]
[320977241,1711726279480,-500.0,0.00052054,120]
[320977242,1711726279490,-500.0,0.00052054,120]
[320977243,1711726279500,-500.0,0.00052054,120]
[320977244,1711726279510,-176.54,0.00052054,120]
[320977245,1711726279520,-500.0,0.00052054,120]
[320977246,1711726279530,-500.0,0.00052054,120]
[320977247,1711726279539,-500.0,0.00052054,120]
[320977248,1711726279549,-500.0,0.00052054,120]
[320977249,1711726279558,-500.0,0.00052054,2]
[320977250,1711726279571,-500.0,0.00052054,120]
[320977251,1711726279582,-500.0,0.00052054,120]
[320977252,1711726279592,-500.0,0.00052054,120]
[320977253,1711726279602,-500.0,0.00052054,120]
[320977254,1711726279613,-500.0,0.00052054,120]
[320977255,1711726279624,-636.24,0.00052054,120]
[320977256,1711726279635,-500.0,0.00052054,120]
[320977257,1711726279646,-209.91209086,0.00052054,120]
[320977258,1711726279655,-500.0,0.00052054,120]
[320977259,1711726279665,-500.0,0.00052054,120]
[320977260,1711726279675,-500.0,0.00052054,120]
[320977261,1711726279826,-500.0,0.00052054,120]
[320977262,1711726279836,-500.0,0.00052054,2]
[320977263,1711726279846,-500.0,0.00052054,120]
[320977264,1711726279855,-500.0,0.00052054,120]
[320977265,1711726279864,-900.75,0.00052054,120]
[320977266,1711726279873,-500.0,0.00052054,120]
[320977267,1711726279882,-500.0,0.00052054,120]
[320977268,1711726279892,-161.82,0.00052054,120]
[320977269,1711726279901,-500.0,0.00052054,120]
[320977270,1711726279911,-500.0,0.00052054,120]
[320977271,1711726279921,-500.0,0.00052054,120]
[320977272,1711726279931,-541.66,0.00052054,120]
[320977273,1711726279940,-500.0,0.00052054,120]
[320977274,1711726279949,-500.0,0.00052054,120]
[320977275,1711726279959,-500.0,0.00052054,120]
[320977276,1711726279968,-431.43915959,0.00052054,120]
[320977277,1711726279978,-500.0,0.00052054,120]
[320977278,1711726279987,-478.12,0.00052054,120]
[320977279,1711726279997,-500.0,0.00052054,120]
[320977280,1711726280006,-500.0,0.00052054,120]
[320977281,1711726280016,-500.0,0.00052054,120]
[320977282,1711726280026,-354.86936547,0.00052054,120]
[320977283,1711726280035,-500.0,0.00052054,120]
[320977284,1711726280045,-500.0,0.00052054,120]
[320977285,1711726280054,-500.0,0.00052054,120]
[320977286,1711726280066,-317.09713969,0.00052054,120]
[320977287,1711726280077,-500.0,0.00052054,120]
[320977288,1711726280087,-500.0,0.00052054,120]
[320977289,1711726280097,-500.0,0.00052054,120]
[320977290,1711726280107,-500.0,0.00052054,120]
[320977291,1711726280117,-500.0,0.00052054,120]
[320977292,1711726280129,-524.41,0.00052054,120]
[320977293,1711726280142,-500.0,0.00052054,120]
[320977294,1711726280152,-593.93,0.00052054,120]
[320977295,1711726280171,-174.95,0.00052054,120]
[320977296,1711726280184,-2105.64,0.00052054,120]
[320977297,1711726280194,-500.0,0.00052054,120]
[320977298,1711726280205,-500.0,0.00052054,120]
[320977299,1711726280218,-542.11966263,0.00052054,120]
[320977300,1711726280230,-832.0,0.00052054,120]
[320977301,1711726280240,-306.91101711,0.00052054,120]
[320977302,1711726280250,-500.0,0.00052054,120]
[320977303,1711726280261,-500.0,0.00052054,120]
[320977304,1711726280272,-500.0,0.00052054,120]
[320977305,1711726280282,-500.0,0.00052054,120]
[320977306,1711726280293,-402.91400705,0.00052054,120]
[320977307,1711726280303,-500.0,0.00052054,120]
[320977308,1711726280317,-500.0,0.00052054,120]
[320977309,1711726280327,-500.0,0.00052054,120]
[320977310,1711726280337,-500.0,0.00052054,120]
[320977311,1711726280346,-500.0,0.00052054,120]
[320977312,1711726280357,-500.0,0.00052054,120]
[320977313,1711726280367,-500.0,0.00052054,120]
[320977314,1711726280377,-500.0,0.00052054,120]
[320977315,1711726280387,-500.0,0.00052054,120]
[320977316,1711726280398,-500.0,0.00052054,120]
[320977317,1711726280407,-500.0,0.00052054,120]
[320977318,1711726280417,-1095.45,0.00052054,120]
[320977319,1711726280427,-500.0,0.00052054,120]
[320977320,1711726280437,-500.0,0.00052054,120]
[320977321,1711726280448,-1919.57,0.00052054,120]
[320977322,1711726280458,-500.0,0.00052054,120]
[320977323,1711726280467,-500.0,0.00052054,120]
[320977324,1711726280477,-500.0,0.00052054,120]
[320977325,1711726280488,-500.0,0.00052054,120]
[320977326,1711726280498,-790.31,0.00052054,120]
[320977327,1711726280508,-500.0,0.00052054,120]
[320977328,1711726280519,-500.0,0.00052054,120]
[320977329,1711726280529,-3250.79,0.00052054,120]
[320977330,1711726280539,-500.0,0.00052054,120]
[320977331,1711726280550,-543.43,0.00052054,120]
[320977332,1711726280561,-2026.92,0.00052054,120]
[320977333,1711726280574,-2794.01,0.00052054,120]
[320977334,1711726280584,-508.65,0.00052054,120]
[320977335,1711726280594,-543.18,0.00052054,120]
[320977336,1711726280603,-500.0,0.00052054,120]
[320977337,1711726280613,-725.25,0.00052054,120]
[320977338,1711726280623,-500.0,0.00052054,120]
[320977339,1711726280633,-500.0,0.00052054,120]
[320977340,1711726280644,-500.0,0.00052054,120]
[320977341,1711726280654,-500.0,0.00052054,120]
[320977342,1711726280664,-1985.65,0.00052054,120]
[320977343,1711726280674,-778.03,0.00052054,120]
[320977344,1711726280684,-966.8,0.00052054,120]
[320977345,1711726280694,-15575.03,0.00052054,120]
[320977346,1711726280704,-500.0,0.00052054,120]
[320977347,1711726280714,-1347.71,0.00052054,120]
[320977348,1711726280724,-500.0,0.00052054,120]
[320977349,1711726280734,-1542.42,0.00052054,120]
[320977350,1711726280745,-500.0,0.00052054,120]
[320977351,1711726280756,-500.0,0.00052054,120]
[320977352,1711726280766,-1449.82,0.00052054,120]
[320977353,1711726280777,-500.0,0.00052054,80]
[320977354,1711726280786,-2716.26,0.00052054,120]
[320977355,1711726280797,-764.96,0.00052054,120]
[320977356,1711726280807,-1663.53,0.00052054,120]
[320977357,1711726280822,-500.0,0.00052054,120]
[320977358,1711726280832,-1151.51,0.00052054,120]
[320977359,1711726280842,-500.0,0.00052054,120]
[320977360,1711726280852,-500.0,0.00052054,120]
[320977361,1711726280863,-769.64,0.00052054,120]
[320977362,1711726280873,-1016.62,0.00052054,120]
[320977363,1711726280883,-784.23,0.00052054,120]
[320977364,1711726280893,-500.0,0.00052054,120]
[320977365,1711726280903,-500.0,0.00052054,120]
[320977366,1711726280913,-1622.26,0.00052054,120]
[320977367,1711726280923,-500.0,0.00052054,120]
[320977368,1711726280933,-1424.61,0.00052054,120]
[320977369,1711726280944,-815.78,0.00052054,120]
[320977370,1711726280955,-500.0,0.00052054,120]
[320977371,1711726280964,-500.0,0.00052054,120]
[320977372,1711726280975,-500.0,0.00052054,120]
[320977373,1711726280986,-500.0,0.00052054,120]
[320977374,1711726280996,-500.0,0.00052054,120]
[320977375,1711726281006,-399.01549056,0.00052054,60]
[320977376,1711726281015,-992.25,0.00052054,120]
[320977377,1711726281025,-11718.94,0.00052054,120]
[320977378,1711726281034,-743.51,0.00052054,120]
[320977379,1711726281043,-890.38,0.00052054,120]
[320977380,1711726281053,-765.17,0.00052054,120]
[320977381,1711726281064,-553.36,0.00052054,120]
[320977382,1711726281073,-8521.15,0.00052054,120]
[320977383,1711726281082,-500.0,0.00052054,120]
[320977384,1711726281092,-500.0,0.00052054,120]
[320977385,1711726281102,-500.0,0.00052054,120]
[320977386,1711726281113,-648.88,0.00052054,120]
[320977387,1711726281123,-1919.3,0.00052054,120]
[320977388,1711726281134,-295.52963178,0.00052054,120]
[320977389,1711726281144,-2207.99,0.00052054,120]
[320977390,1711726281154,-500.0,0.00052054,120]
[320977391,1711726281166,-1309.66,0.00052054,120]
[320977392,1711726281176,-557.08,0.00052054,120]
[320977393,1711726281186,-1108.08,0.00052054,120]
[320977394,1711726281197,-1833.17,0.00052054,120]
[320977395,1711726281207,-500.0,0.00052054,120]
[320977396,1711726281217,-607.25,0.00052054,120]
[320977397,1711726281228,-815.81,0.00052054,120]
[320977398,1711726281238,-862.41,0.00052054,120]
[320977399,1711726281248,-500.0,0.00052054,120]
[320977400,1711726281259,-1018.76,0.00052054,120]
[320977401,1711726281269,-500.0,0.00052054,120]
[320977402,1711726281278,-500.0,0.00052054,120]
[320977403,1711726281288,-1702.99,0.00052054,120]
[320977404,1711726281299,-1165.7,0.00052054,120]
[320977405,1711726281309,-1004.77,0.00052054,120]
[320977406,1711726281322,-696.93,0.00052054,120]
[320977407,1711726281332,-500.0,0.00052054,120]
[320977408,1711726281341,-500.0,0.00052054,120]
[320977409,1711726281351,-500.0,0.00052054,120]
[320977410,1711726281361,-1354.93,0.00052054,21]
[320977411,1711726281371,-500.0,0.00052054,120]
[320977412,1711726281381,-977.65,0.00052054,120]
[320977413,1711726281391,-1113.41,0.00052054,120]
[320977414,1711726281402,-500.0,0.00052054,120]
[320977415,1711726281415,-3333.95,0.00052054,120]
[320977416,1711726281426,-500.0,0.00052054,120]
[320977417,1711726281437,-572.67,0.00052054,120]
[320977418,1711726281447,-683.76,0.00052054,120]
[320977419,1711726281457,-298.50406732,0.00052054,120]
[320977420,1711726281467,-7484.68,0.00052054,120]
[320977421,1711726281477,-1354.15,0.00052054,120]
[320977422,1711726281487,-1280.61,0.00052054,120]
[320977423,1711726281497,-500.0,0.00052054,120]
[320977424,1711726281507,-500.0,0.00052054,120]
[320977425,1711726281517,-553.1,0.00052054,120]
[320977426,1711726281527,-3298.9,0.00052054,120]
[320977427,1711726281537,-3130.3,0.00052054,120]
[320977428,1711726281547,-2135.45,0.00052054,120]
[320977429,1711726281556,-1018.52,0.00052054,120]
[320977430,1711726281568,-2568.4,0.00052054,120]
[320977431,1711726281578,-594.87,0.00052054,120]
[320977432,1711726281588,-824.29,0.00052054,120]
[320977433,1711726281598,-628.61,0.00052054,120]
[320977434,1711726281608,-1054.95,0.00052054,120]
[320977435,1711726281618,-947.76,0.00052054,120]
[320977436,1711726281628,-500.0,0.00052054,120]
[320977437,1711726281637,-500.0,0.00052054,120]
[320977438,1711726281647,-805.33,0.00052054,120]
[320977439,1711726281657,-500.0,0.00052054,120]
[320977440,1711726281668,-652.14,0.00052054,120]
[320977441,1711726281678,-500.0,0.00052054,120]
[320977442,1711726281688,-1684.07,0.00052054,120]
[320977443,1711726281698,-1222.42,0.00052054,120]
[320977444,1711726281707,-500.0,0.00052054,120]
[320977445,1711726281717,-500.0,0.00052054,120]
[320977446,1711726281727,-500.0,0.00052054,120]
[320977447,1711726281737,-647.43,0.00052054,120]
[320977448,1711726281747,-637.47,0.00052054,120]
[320977449,1711726281757,-929.07,0.00052054,120]
[320977450,1711726281767,-500.0,0.00052054,120]
[320977451,1711726281778,-1752.94,0.00052054,120]
[320977452,1711726281788,-506.23,0.00052054,120]
[320977453,1711726281798,-1482.27,0.00052054,120]
[320977454,1711726281808,-1080.07,0.00052054,120]
[320977455,1711726281823,-500.0,0.00052054,120]
[320977456,1711726281833,-500.0,0.00052054,120]
[320977457,1711726281843,-917.61,0.00052054,120]
[320977458,1711726281854,-824.53,0.00052054,120]
[320977459,1711726281863,-641.26,0.00052054,120]
[320977460,1711726281872,-579.18,0.00052054,120]
[320977461,1711726281882,-572.87,0.00052054,120]
[320977462,1711726281891,-1389.6,0.00052054,120]
[320977463,1711726281901,-975.56,0.00052054,120]
[320977464,1711726281912,-152.41256319,0.0005206,60]
[320977465,1711726281922,-1493.20975127,0.00052091,120]
[320977466,1711726281931,-151.22451208,0.00052106,52]
[320977467,1711726281941,-1935.94,0.00052108,120]
[320977468,1711726281951,-227.38888889,0.00052219,120]
[320977469,1711726281962,-2162.81092873,0.00052283,2]
[320977470,1711726281972,-500.0,0.00052328,120]
[320977471,1711726281983,-318.19927463,0.00052328,120]
[320977472,1711726281992,-183.11751406,0.00052328,120]
[320977473,1711726282003,-500.0,0.00052328,120]
[320977474,1711726282013,-214.33764614,0.00052328,120]
[320977475,1711726282024,-458.89599623,0.00052328,120]
[320977476,1711726282034,-500.0,0.00052328,120]
[320977477,1711726282044,-202.53992599,0.00052328,120]
[320977478,1711726282053,-500.0,0.00052328,120]
[320977479,1711726282066,-514.47429918,0.00052328,120]
[320977480,1711726282232,-500.0,0.00052328,2]
[320977481,1711726282245,-500.0,0.00052328,120]
[320977482,1711726282257,-500.0,0.00052328,120]
[320977483,1711726282267,-647.03555564,0.00052328,120]
[320977484,1711726282277,-545.56,0.00052328,120]
[320977485,1711726282287,-460.94,0.00052328,120]
[320977486,1711726282296,-500.0,0.00052328,120]
[320977487,1711726282306,-319.75,0.00052328,120]
[320977488,1711726282318,-500.0,0.00052328,120]
[320977489,1711726282327,-500.0,0.00052328,120]
[320977490,1711726282337,-500.0,0.00052328,120]
[320977491,1711726282346,-500.0,0.00052328,2]
[320977492,1711726282356,-500.0,0.00052328,120]
[320977493,1711726282365,-900.75,0.00052328,120]
[320977494,1711726282374,-500.0,0.00052328,120]
[320977495,1711726282383,-574.65759808,0.00052328,120]
[320977496,1711726282393,-500.0,0.00052328,120]
[320977497,1711726282402,-500.0,0.00052328,120]
[320977498,1711726282411,-500.0,0.00052328,120]
[320977499,1711726282420,-500.0,0.00052328,120]
[320977500,1711726282430,-541.66,0.00052328,120]
[320977501,1711726282439,-500.0,0.00052328,120]
[320977502,1711726282449,-500.0,0.00052328,120]
[320977503,1711726282459,-194.37,0.00052328,120]
[320977504,1711726282468,-500.0,0.00052328,120]
[320977505,1711726282477,-500.0,0.00052328,120]
[320977506,1711726282486,-500.0,0.00052328,120]
[320977507,1711726282496,-503.12653477,0.00052328,120]
[320977508,1711726282505,-500.0,0.00052328,120]
[320977509,1711726282514,-500.0,0.00052328,120]
[320977510,1711726282523,-500.0,0.00052328,120]
[320977511,1711726282532,-500.0,0.00052328,120]
[320977512,1711726282541,-500.0,0.00052328,120]
[320977513,1711726282550,-500.0,0.00052328,120]
[320977514,1711726282559,-500.0,0.00052328,120]
[320977515,1711726282571,-500.0,0.00052328,120]
[320977516,1711726282580,-524.41,0.00052328,120]
[320977517,1711726282589,-500.0,0.00052328,120]
[320977518,1711726282597,-593.93,0.00052328,120]
[320977519,1711726282607,-174.95,0.00052328,120]
[320977520,1711726282616,-2105.64,0.00052328,120]
[320977521,1711726282625,-500.0,0.00052328,120]
[320977522,1711726282634,-500.0,0.00052328,120]
[320977523,1711726282643,-832.0,0.00052328,120]
[320977524,1711726282653,-270.8425897,0.00052328,120]
[320977525,1711726282662,-500.0,0.00052328,120]
[320977526,1711726282671,-500.0,0.00052328,120]
[320977527,1711726282681,-500.0,0.00052328,120]
[320977528,1711726282691,-500.0,0.00052328,120]
[320977529,1711726282700,-500.0,0.00052328,120]
[320977530,1711726282709,-500.0,0.00052328,120]
[320977531,1711726282719,-500.0,0.00052328,120]
[320977532,1711726282728,-354.21707635,0.00052328,120]
[320977533,1711726282738,-500.0,0.00052328,120]
[320977534,1711726282748,-326.60987934,0.00052328,120]
[320977535,1711726282757,-500.0,0.00052328,120]
[320977536,1711726282767,-500.0,0.00052328,120]
[320977537,1711726282777,-500.0,0.00052328,120]
[320977538,1711726282786,-500.0,0.00052328,120]
[320977539,1711726282796,-1095.45,0.00052328,120]
[320977540,1711726282806,-500.0,0.00052328,120]
[320977541,1711726282818,-500.0,0.00052328,120]
[320977542,1711726282828,-1919.57,0.00052328,120]
[320977543,1711726282839,-500.0,0.00052328,120]
[320977544,1711726282848,-395.36691359,0.00052328,120]
[320977545,1711726282859,-500.0,0.00052328,120]
[320977546,1711726282868,-500.0,0.00052328,120]
[320977547,1711726282878,-790.31,0.00052328,120]
[320977548,1711726282887,-500.0,0.00052328,120]
[320977549,1711726282896,-500.0,0.00052328,120]
[320977550,1711726282906,-3250.79,0.00052328,120]
[320977551,1711726282915,-500.0,0.00052328,120]
[320977552,1711726282926,-543.43,0.00052328,120]
[320977553,1711726282936,-2026.92,0.00052328,120]
[320977554,1711726282947,-2794.01,0.00052328,120]
[320977555,1711726282957,-508.65,0.00052328,120]
[320977556,1711726282966,-543.18,0.00052328,120]
[320977557,1711726282989,-500.0,0.00052328,120]
[320977558,1711726282999,-725.25,0.00052328,120]
[320977559,1711726283009,-500.0,0.00052328,120]
[320977560,1711726283019,-500.0,0.00052328,120]
[320977561,1711726283028,-500.0,0.00052328,120]
[320977562,1711726283040,-500.0,0.00052328,120]
[320977563,1711726283050,-1985.65,0.00052328,120]
[320977564,1711726283059,-778.03,0.00052328,120]
[320977565,1711726283073,-966.8,0.00052328,120]
[320977566,1711726283083,-15575.03,0.00052328,120]
[320977567,1711726283093,-500.0,0.00052328,120]
[320977568,1711726283103,-1347.71,0.00052328,120]
[320977569,1711726283112,-500.0,0.00052328,120]
[320977570,1711726283123,-1542.42,0.00052328,120]
[320977571,1711726283133,-500.0,0.00052328,120]
[320977572,1711726283143,-500.0,0.00052328,120]
[320977573,1711726283154,-500.0,0.00052328,80]
[320977574,1711726283165,-1449.82,0.00052328,120]
[320977575,1711726283175,-2716.26,0.00052328,120]
[320977576,1711726283185,-764.96,0.00052328,120]
[320977577,1711726283194,-1663.53,0.00052328,120]
[320977578,1711726283205,-500.0,0.00052328,120]
[320977579,1711726283214,-1151.51,0.00052328,120]
[320977580,1711726283225,-500.0,0.00052328,120]
[320977581,1711726283235,-500.0,0.00052328,120]
[320977582,1711726283245,-769.64,0.00052328,120]
[320977583,1711726283256,-1016.62,0.00052328,120]
[320977584,1711726283267,-784.23,0.00052328,120]
[320977585,1711726283277,-500.0,0.00052328,120]
[320977586,1711726283287,-500.0,0.00052328,120]
[320977587,1711726283297,-1622.26,0.00052328,120]
[320977588,1711726283307,-500.0,0.00052328,120]
[320977589,1711726283320,-1424.61,0.00052328,120]
[320977590,1711726283330,-815.78,0.00052328,120]
[320977591,1711726283340,-500.0,0.00052328,120]
[320977592,1711726283350,-500.0,0.00052328,120]
[320977593,1711726283361,-500.0,0.00052328,120]
[320977594,1711726283372,-500.0,0.00052328,120]
[320977595,1711726283383,-992.25,0.00052328,120]
[320977596,1711726283393,-11718.94,0.00052328,120]
[320977597,1711726283403,-743.51,0.00052328,120]
[320977598,1711726283413,-890.38,0.00052328,120]
[320977599,1711726283423,-765.17,0.00052328,120]
[320977600,1711726283433,-553.36,0.00052328,120]
[320977601,1711726283443,-8521.15,0.00052328,120]
[320977602,1711726283453,-644.24754542,0.00052328,120]
[320977603,1711726283464,-500.0,0.00052328,120]
[320977604,1711726283475,-500.0,0.00052328,120]
[320977605,1711726283486,-1919.3,0.00052328,120]
[320977606,1711726283497,-648.88,0.00052328,120]
[320977607,1711726283508,-2207.99,0.00052328,120]
[320977608,1711726283518,-500.0,0.00052328,120]
[320977609,1711726283527,-1309.66,0.00052328,120]
[320977610,1711726283537,-557.08,0.00052328,120]
[320977611,1711726283547,-1108.08,0.00052328,120]
[320977612,1711726283558,-1833.17,0.00052328,120]
[320977613,1711726283571,-280.56299819,0.00052328,120]
[320977614,1711726283582,-607.25,0.00052328,120]
[320977615,1711726283591,-815.81,0.00052328,120]
[320977616,1711726283601,-862.41,0.00052328,120]
[320977617,1711726283611,-500.0,0.00052328,120]
[320977618,1711726283620,-1018.76,0.00052328,120]
[320977619,1711726283629,-500.0,0.00052328,120]
[320977620,1711726283639,-500.0,0.00052328,120]
[320977621,1711726283650,-1702.99,0.00052328,120]
[320977622,1711726283659,-1165.7,0.00052328,120]
[320977623,1711726283669,-1004.77,0.00052328,120]
[320977624,1711726283679,-696.93,0.00052328,120]
[320977625,1711726283690,-500.0,0.00052328,120]
[320977626,1711726283700,-500.0,0.00052328,120]
[320977627,1711726283710,-500.0,0.00052328,120]
[320977628,1711726283720,-1354.93,0.00052328,21]
[320977629,1711726283730,-500.0,0.00052328,120]
[320977630,1711726283740,-977.65,0.00052328,120]
[320977631,1711726283750,-1113.41,0.00052328,120]
[320977632,1711726283761,-500.0,0.00052328,120]
[320977633,1711726283771,-3333.95,0.00052328,120]
[320977634,1711726283781,-500.0,0.00052328,120]
[320977635,1711726283791,-572.67,0.00052328,120]
[320977636,1711726283802,-683.76,0.00052328,120]
[320977637,1711726283812,-7484.68,0.00052328,120]
[320977638,1711726283823,-1354.15,0.00052328,120]
[320977639,1711726283833,-1280.61,0.00052328,120]
[320977640,1711726283843,-500.0,0.00052328,120]
[320977641,1711726283852,-500.0,0.00052328,120]
[320977642,1711726283862,-553.1,0.00052328,120]
[320977643,1711726283872,-3298.9,0.00052328,120]
[320977644,1711726283882,-3130.3,0.00052328,120]
[320977645,1711726283891,-2135.45,0.00052328,120]
[320977646,1711726283901,-1018.52,0.00052328,120]
[320977647,1711726283910,-2568.4,0.00052328,120]
[320977648,1711726283920,-594.87,0.00052328,120]
[320977649,1711726283930,-824.29,0.00052328,120]
[320977650,1711726283939,-628.61,0.00052328,120]
[320977651,1711726283949,-1054.95,0.00052328,120]
[320977652,1711726283958,-947.76,0.00052328,120]
[320977653,1711726283968,-500.0,0.00052328,120]
[320977654,1711726283977,-805.33,0.00052328,120]
[320977655,1711726283987,-500.0,0.00052328,120]
[320977656,1711726283996,-500.0,0.00052328,120]
[320977657,1711726284007,-652.14,0.00052328,120]
[320977658,1711726284017,-500.0,0.00052328,120]
[320977659,1711726284026,-1684.07,0.00052328,120]
[320977660,1711726284035,-1222.42,0.00052328,120]
[320977661,1711726284045,-500.0,0.00052328,120]
[320977662,1711726284055,-500.0,0.00052328,120]
[320977663,1711726284067,-500.0,0.00052328,120]
[320977664,1711726284077,-647.43,0.00052328,120]
[320977665,1711726284087,-637.47,0.00052328,120]
[320977666,1711726284097,-929.07,0.00052328,120]
[320977667,1711726284107,-500.0,0.00052328,120]
[320977668,1711726284116,-1752.94,0.00052328,120]
[320977669,1711726284126,-506.23,0.00052328,120]
[320977670,1711726284135,-1482.27,0.00052328,120]
[320977671,1711726284144,-1080.07,0.00052328,120]
[320977672,1711726284155,-500.0,0.00052328,120]
[320977673,1711726284165,-500.0,0.00052328,120]
[320977674,1711726284174,-917.61,0.00052328,120]
[320977675,1711726284184,-824.53,0.00052328,120]
[320977676,1711726284195,-641.26,0.00052328,120]
[320977677,1711726284204,-579.18,0.00052328,120]
[320977678,1711726284214,-572.87,0.00052328,120]
[320977679,1711726284224,-1389.6,0.00052328,120]
[320977680,1711726284234,-975.56,0.00052328,120]
[320977681,1711726284244,-1170.77280022,0.00052344,120]
[320977682,1711726284396,-1867.45827,0.0005235,60]
[320977683,1711726284407,-1493.20975127,0.00052358,120]
[320977684,1711726284418,-500.0,0.00052602,120]
[320977685,1711726284430,-500.0,0.00052602,120]
[320977686,1711726284441,-500.0,0.00052602,120]
[320977687,1711726284452,-500.0,0.00052602,120]
[320977688,1711726284463,-500.0,0.00052602,2]
[320977689,1711726284474,-500.0,0.00052602,120]
[320977690,1711726284486,-500.0,0.00052602,120]
[320977691,1711726284496,-500.0,0.00052602,120]
[320977692,1711726284507,-536.17,0.00052602,120]
[320977693,1711726284518,-500.0,0.00052602,120]
[320977694,1711726284529,-500.0,0.00052602,120]
[320977695,1711726284540,-500.0,0.00052602,2]
[320977696,1711726284551,-549.9,0.00052602,120]
[320977697,1711726284563,-900.75,0.00052602,120]